[Event "Late-Titled-Tuesday-Blitz-September-12-2023"]
[Site "Chess.com"]
[Date "2023.09.12"]
[Round "6"]
[White "MusicCityMaster"]
[Black "TanitoluwaAps116"]
[Result "0-1"]
[WhiteElo "2370"]
[BlackElo "2696"]
[TimeControl "180+1"]
[EndTime "15:04:44 PDT"]
[Termination "TanitoluwaAps116 won by checkmate"]

1. e4 {[%clk 0:03:00.9]} 1... c5 {[%clk 0:02:58.6]} 2. Nf3 {[%clk 0:02:53.6]}
2... Nc6 {[%clk 0:02:53.8]} 3. d3 {[%clk 0:02:53.9]} 3... d5 {[%clk 0:02:50.3]}
4. Nbd2 {[%clk 0:02:53]} 4... Nf6 {[%clk 0:02:49.8]} 5. g3 {[%clk 0:02:53.4]}
5... b6 {[%clk 0:02:40.9]} 6. Bg2 {[%clk 0:02:53.1]} 6... Bb7 {[%clk 0:02:32.1]}
7. O-O {[%clk 0:02:51.7]} 7... e6 {[%clk 0:02:31.8]} 8. Re1 {[%clk 0:02:46.6]}
8... Be7 {[%clk 0:02:30.6]} 9. c3 {[%clk 0:02:39.9]} 9... O-O {[%clk 0:02:15.9]}
10. e5 {[%clk 0:02:36]} 10... Nd7 {[%clk 0:02:14.4]} 11. a3 {[%clk 0:02:31.4]}
11... Rc8 {[%clk 0:01:56]} 12. Nf1 {[%clk 0:02:24.8]} 12... Ba6 {[%clk
0:01:46.7]} 13. h4 {[%clk 0:02:16.3]} 13... Qc7 {[%clk 0:01:39.8]} 14. Bf4
{[%clk 0:02:15.5]} 14... b5 {[%clk 0:01:19.2]} 15. h5 {[%clk 0:02:11]} 15... Qb6
{[%clk 0:01:08.1]} 16. h6 {[%clk 0:02:05.2]} 16... g6 {[%clk 0:01:03.1]} 17. Ne3
{[%clk 0:01:46.2]} 17... b4 {[%clk 0:00:47.7]} 18. axb4 {[%clk 0:01:39.3]} 18...
cxb4 {[%clk 0:00:48.6]} 19. c4 {[%clk 0:01:22.1]} 19... dxc4 {[%clk 0:00:37.7]}
20. dxc4 {[%clk 0:01:21.2]} 20... Nc5 {[%clk 0:00:33.6]} 21. Nd5 {[%clk
0:01:02.9]} 21... exd5 {[%clk 0:00:26.9]} 22. cxd5 {[%clk 0:01:03.8]} 22... Nd3
{[%clk 0:00:21.9]} 23. Re3 {[%clk 0:00:52]} 23... Nxf4 {[%clk 0:00:17.3]} 24.
gxf4 {[%clk 0:00:52.9]} 24... Bc5 {[%clk 0:00:17.1]} 25. Rb3 {[%clk 0:00:35.3]}
25... Rfd8 {[%clk 0:00:11.9]} 26. Qd2 {[%clk 0:00:27.3]} 26... Bc4 {[%clk
0:00:10.7]} 27. Rd3 {[%clk 0:00:23.1]} 27... Bxd3 {[%clk 0:00:10.8]} 28. Qxd3
{[%clk 0:00:23.5]} 28... Nd4 {[%clk 0:00:09.9]} 29. Ng5 {[%clk 0:00:19.8]} 29...
Nf5 {[%clk 0:00:07.8]} 30. Ne4 {[%clk 0:00:19]} 30... Bd4 {[%clk 0:00:06.3]} 31.
Ra6 {[%clk 0:00:15.5]} 31... Rc1+ {[%clk 0:00:05.6]} 32. Kh2 {[%clk 0:00:14.4]}
32... Qc7 {[%clk 0:00:05.8]} 33. d6 {[%clk 0:00:13.4]} 33... Qc2 {[%clk
0:00:05.6]} 34. Nf6+ {[%clk 0:00:13.5]} 34... Kh8 {[%clk 0:00:04.6]} 35. Qxc2
{[%clk 0:00:12.5]} 35... Rxc2 {[%clk 0:00:05.5]} 36. Bd5 {[%clk 0:00:10.1]}
36... Rxf2+ {[%clk 0:00:05.4]} 37. Kh3 {[%clk 0:00:09.7]} 37... Rxf4 {[%clk
0:00:05.1]} 38. Bxf7 {[%clk 0:00:08.8]} 38... Rh4+ {[%clk 0:00:05.6]} 39. Kg2
{[%clk 0:00:09.4]} 39... Bxe5 {[%clk 0:00:05.5]} 40. Nd5 {[%clk 0:00:06.7]}
40... Rxh6 {[%clk 0:00:05.5]} 41. Rxa7 {[%clk 0:00:06.4]} 41... Nxd6 {[%clk
0:00:05.6]} 42. Be6 {[%clk 0:00:05.6]} 42... Rh2+ {[%clk 0:00:06]} 43. Kf3
{[%clk 0:00:05.1]} 43... Rf8+ {[%clk 0:00:06.3]} 44. Ke3 {[%clk 0:00:05.8]}
44... Rh3+ {[%clk 0:00:05.7]} 45. Ke2 {[%clk 0:00:05.8]} 45... Rf2+ {[%clk
0:00:04.3]} 46. Kxf2 {[%clk 0:00:05.4]} 46... Bd4+ {[%clk 0:00:04.8]} 47. Ke2
{[%clk 0:00:05.9]} 47... Bxa7 {[%clk 0:00:05]} 48. Kd2 {[%clk 0:00:06.5]} 48...
Bd4 {[%clk 0:00:04.7]} 49. Kc2 {[%clk 0:00:07.4]} 49... b3+ {[%clk 0:00:05]} 50.
Kd2 {[%clk 0:00:07.7]} 50... Nc4+ {[%clk 0:00:05.3]} 51. Ke2 {[%clk 0:00:07.9]}
51... Nxb2 {[%clk 0:00:06]} 52. Ne7 {[%clk 0:00:06.8]} 52... Re3+ {[%clk
0:00:06.5]} 53. Kf2 {[%clk 0:00:07.1]} 53... Rxe6+ {[%clk 0:00:07.4]} 54. Kf3
{[%clk 0:00:07.3]} 54... Rxe7 {[%clk 0:00:07.7]} 55. Kf4 {[%clk 0:00:08.2]}
55... Nc4 {[%clk 0:00:08.2]} 56. Kg5 {[%clk 0:00:09]} 56... Kg7 {[%clk
0:00:07.8]} 57. Kf4 {[%clk 0:00:09.9]} 57... Re3 {[%clk 0:00:07.7]} 58. Kg4
{[%clk 0:00:10.8]} 58... h5+ {[%clk 0:00:07]} 59. Kf4 {[%clk 0:00:11.7]} 59...
b2 {[%clk 0:00:07.1]} 60. Kg5 {[%clk 0:00:12.6]} 60... Be5 {[%clk 0:00:05.4]}
61. Kh4 {[%clk 0:00:12.6]} 61... b1=Q {[%clk 0:00:06]} 62. Kg5 {[%clk 0:00:13]}
62... Qf5+ {[%clk 0:00:05.8]} 63. Kh4 {[%clk 0:00:13.4]} 63... Bf6# {[%clk
0:00:06.4]} 0-1

[Event "Late-Titled-Tuesday-Blitz-September-12-2023"]
[Site "Chess.com"]
[Date "2023.09.12"]
[Round "6"]
[White "SaqoChess_Twitch"]
[Black "Der_Honigdachs"]
[Result "1-0"]
[WhiteElo "2722"]
[BlackElo "2530"]
[TimeControl "180+1"]
[EndTime "15:04:46 PDT"]
[Termination "SaqoChess_Twitch won by checkmate"]

1. d4 {[%clk 0:03:00.9]} 1... Nf6 {[%clk 0:02:59.7]} 2. c4 {[%clk 0:03:01.2]}
2... c6 {[%clk 0:02:57.4]} 3. Nc3 {[%clk 0:03:01.5]} 3... d5 {[%clk 0:02:57.9]}
4. e3 {[%clk 0:03:01.6]} 4... e6 {[%clk 0:02:57.6]} 5. Nf3 {[%clk 0:03:02]} 5...
a6 {[%clk 0:02:57.2]} 6. Bd3 {[%clk 0:03:01.2]} 6... dxc4 {[%clk 0:02:57.1]} 7.
Bxc4 {[%clk 0:03:01.3]} 7... b5 {[%clk 0:02:58]} 8. Bd3 {[%clk 0:03:01.8]} 8...
Bb7 {[%clk 0:02:58.9]} 9. e4 {[%clk 0:02:59.5]} 9... Nbd7 {[%clk 0:02:59]} 10.
e5 {[%clk 0:02:59.7]} 10... Nd5 {[%clk 0:02:59]} 11. Nxd5 {[%clk 0:02:59.5]}
11... cxd5 {[%clk 0:02:59.6]} 12. O-O {[%clk 0:02:59.9]} 12... Be7 {[%clk
0:02:59.6]} 13. Be3 {[%clk 0:02:59.4]} 13... O-O {[%clk 0:03:00.1]} 14. h4
{[%clk 0:02:59.9]} 14... Bxh4 {[%clk 0:02:57.5]} 15. g3 {[%clk 0:02:59.8]} 15...
Be7 {[%clk 0:02:57.6]} 16. Kg2 {[%clk 0:03:00.2]} 16... f5 {[%clk 0:02:56.9]}
17. exf6 {[%clk 0:02:56.5]} 17... Bxf6 {[%clk 0:02:55.2]} 18. Rh1 {[%clk
0:02:55.6]} 18... h6 {[%clk 0:02:54.8]} 19. Bxh6 {[%clk 0:02:49.3]} 19... gxh6
{[%clk 0:02:55.5]} 20. Rxh6 {[%clk 0:02:49.3]} 20... Bg7 {[%clk 0:02:30.2]} 21.
Rxe6 {[%clk 0:02:25]} 21... Nf6 {[%clk 0:02:22.4]} 22. Qh1 {[%clk 0:02:22.4]}
22... Bc8 {[%clk 0:02:17.8]} 23. Re5 {[%clk 0:02:08.3]} 23... Ne4 {[%clk
0:02:09.2]} 24. Rxe4 {[%clk 0:01:13.5]} 24... dxe4 {[%clk 0:02:09.9]} 25. Bxe4
{[%clk 0:01:14.2]} 25... Bf5 {[%clk 0:02:06.8]} 26. Re1 {[%clk 0:00:48.3]} 26...
Bxe4 {[%clk 0:02:02.5]} 27. Rxe4 {[%clk 0:00:49.2]} 27... Qd5 {[%clk 0:02:01.3]}
28. Qh4 {[%clk 0:00:39]} 28... Rae8 {[%clk 0:01:56.5]} 29. Ng5 {[%clk
0:00:38.3]} 29... Qf5 {[%clk 0:01:38.6]} 30. Rf4 {[%clk 0:00:38.7]} 30... Qg6
{[%clk 0:01:30.9]} 31. Rg4 {[%clk 0:00:38.4]} 31... Qc2 {[%clk 0:01:02.3]} 32.
Nh3 {[%clk 0:00:18.4]} 32... Qc6+ {[%clk 0:00:54.4]} 33. Kh2 {[%clk 0:00:15.4]}
33... Re1 {[%clk 0:00:50.4]} 34. Rxg7+ {[%clk 0:00:13.1]} 34... Kxg7 {[%clk
0:00:49.8]} 35. Qg5+ {[%clk 0:00:13.5]} 35... Qg6 {[%clk 0:00:48.8]} 36. Qc5
{[%clk 0:00:11.8]} 36... Re7 {[%clk 0:00:44.7]} 37. Qxe7+ {[%clk 0:00:11.8]}
37... Rf7 {[%clk 0:00:44.9]} 38. Qe5+ {[%clk 0:00:12]} 38... Qf6 {[%clk
0:00:44.3]} 39. f4 {[%clk 0:00:12.1]} 39... Qxe5 {[%clk 0:00:43.5]} 40. dxe5
{[%clk 0:00:12.9]} 40... Rd7 {[%clk 0:00:42.1]} 41. Kg2 {[%clk 0:00:12.2]} 41...
Rd2+ {[%clk 0:00:42.3]} 42. Kf3 {[%clk 0:00:13]} 42... Rxb2 {[%clk 0:00:42.9]}
43. f5 {[%clk 0:00:13.1]} 43... b4 {[%clk 0:00:39]} 44. f6+ {[%clk 0:00:11.7]}
44... Kg6 {[%clk 0:00:37.3]} 45. Nf4+ {[%clk 0:00:11.6]} 45... Kf7 {[%clk
0:00:37.4]} 46. g4 {[%clk 0:00:11.6]} 46... Rxa2 {[%clk 0:00:32.8]} 47. g5
{[%clk 0:00:12.2]} 47... Ra3+ {[%clk 0:00:29.9]} 48. Ke4 {[%clk 0:00:11.8]}
48... Ra1 {[%clk 0:00:25.1]} 49. e6+ {[%clk 0:00:12.2]} 49... Ke8 {[%clk
0:00:24.3]} 50. f7+ {[%clk 0:00:11.4]} 50... Kf8 {[%clk 0:00:24.1]} 51. Ng6+
{[%clk 0:00:11.8]} 51... Kg7 {[%clk 0:00:24.1]} 52. f8=Q+ {[%clk 0:00:12.2]}
52... Kxg6 {[%clk 0:00:24.9]} 53. Qf6+ {[%clk 0:00:12.2]} 53... Kh5 {[%clk
0:00:25.2]} 54. Qxa1 {[%clk 0:00:12.4]} 54... Kg4 {[%clk 0:00:25.9]} 55. Qxa6
{[%clk 0:00:12.6]} 55... b3 {[%clk 0:00:26.8]} 56. Qe2+ {[%clk 0:00:12.4]} 56...
Kh4 {[%clk 0:00:25.6]} 57. Qb2 {[%clk 0:00:13.3]} 57... Kh5 {[%clk 0:00:25]} 58.
Qxb3 {[%clk 0:00:14.2]} 58... Kg6 {[%clk 0:00:25.1]} 59. e7 {[%clk 0:00:14.6]}
59... Kh5 {[%clk 0:00:25.9]} 60. e8=Q+ {[%clk 0:00:14.4]} 60... Kg4 {[%clk
0:00:26.6]} 61. Qee6+ {[%clk 0:00:14.4]} 61... Kh4 {[%clk 0:00:27.3]} 62. Qbh3+
{[%clk 0:00:14.1]} 62... Kxg5 {[%clk 0:00:26.8]} 63. Qeg4+ {[%clk 0:00:13.7]}
63... Kf6 {[%clk 0:00:26.4]} 64. Qh6+ {[%clk 0:00:14.3]} 64... Ke7 {[%clk
0:00:26.5]} 65. Qgg7+ {[%clk 0:00:15]} 65... Ke8 {[%clk 0:00:24.9]} 66. Qhh8#
{[%clk 0:00:15.9]} 1-0

[Event "Late-Titled-Tuesday-Blitz-September-12-2023"]
[Site "Chess.com"]
[Date "2023.09.12"]
[Round "6"]
[White "zverr1"]
[Black "GoltsevDmitry2000"]
[Result "1-0"]
[WhiteElo "2499"]
[BlackElo "2617"]
[TimeControl "180+1"]
[EndTime "15:04:51 PDT"]
[Termination "zverr1 won by resignation"]

1. d4 {[%clk 0:03:00.9]} 1... e6 {[%clk 0:02:57.3]} 2. c4 {[%clk 0:03:01.4]}
2... Nf6 {[%clk 0:02:56.4]} 3. Nf3 {[%clk 0:03:01.7]} 3... b6 {[%clk 0:02:56.6]}
4. g3 {[%clk 0:03:01.5]} 4... Ba6 {[%clk 0:02:56]} 5. Qc2 {[%clk 0:03:01.4]}
5... Bb4+ {[%clk 0:02:56.2]} 6. Bd2 {[%clk 0:03:01.1]} 6... Be7 {[%clk
0:02:56.9]} 7. Bg2 {[%clk 0:02:55.5]} 7... O-O {[%clk 0:02:57.2]} 8. O-O {[%clk
0:02:55.2]} 8... d5 {[%clk 0:02:57.9]} 9. Ne5 {[%clk 0:02:53.5]} 9... c5 {[%clk
0:02:56.3]} 10. dxc5 {[%clk 0:02:45.5]} 10... bxc5 {[%clk 0:02:56]} 11. Nc3
{[%clk 0:02:41.3]} 11... Bb7 {[%clk 0:02:50.4]} 12. cxd5 {[%clk 0:02:39.8]}
12... exd5 {[%clk 0:02:50.3]} 13. Rad1 {[%clk 0:02:27.4]} 13... Nc6 {[%clk
0:02:34.3]} 14. Nxc6 {[%clk 0:02:23.5]} 14... Bxc6 {[%clk 0:02:35.2]} 15. Bg5
{[%clk 0:02:22.6]} 15... Rb8 {[%clk 0:02:21.7]} 16. b3 {[%clk 0:02:17.6]} 16...
Qa5 {[%clk 0:02:06.9]} 17. Bxf6 {[%clk 0:02:15.4]} 17... Bxf6 {[%clk 0:02:07.8]}
18. Nxd5 {[%clk 0:02:15.2]} 18... Bxd5 {[%clk 0:02:06.8]} 19. Bxd5 {[%clk
0:02:15.4]} 19... Rfe8 {[%clk 0:02:02.5]} 20. Bc4 {[%clk 0:02:14.8]} 20... Re7
{[%clk 0:01:59]} 21. e3 {[%clk 0:02:14.6]} 21... Rd8 {[%clk 0:01:48.6]} 22. Rd3
{[%clk 0:02:05.8]} 22... Red7 {[%clk 0:01:43.2]} 23. Rfd1 {[%clk 0:01:49.4]}
23... Rxd3 {[%clk 0:01:40.5]} 24. Rxd3 {[%clk 0:01:50.3]} 24... Rxd3 {[%clk
0:01:40.7]} 25. Bxd3 {[%clk 0:01:51.2]} 25... g6 {[%clk 0:01:39.1]} 26. a4
{[%clk 0:01:50.5]} 26... Kg7 {[%clk 0:01:38.7]} 27. Bc4 {[%clk 0:01:49.7]} 27...
h5 {[%clk 0:01:34.5]} 28. Qe4 {[%clk 0:01:49]} 28... Qc7 {[%clk 0:01:30.7]} 29.
h4 {[%clk 0:01:45.4]} 29... Qe5 {[%clk 0:01:28.3]} 30. Qb7 {[%clk 0:01:41.8]}
30... Qe7 {[%clk 0:01:28.4]} 31. Qd5 {[%clk 0:01:40.3]} 31... Qc7 {[%clk
0:01:18.3]} 32. a5 {[%clk 0:01:39.2]} 32... Qe7 {[%clk 0:01:17.6]} 33. a6 {[%clk
0:01:39.3]} 33... Qc7 {[%clk 0:01:17.5]} 34. Qb7 {[%clk 0:01:34.3]} 34... Be5
{[%clk 0:00:57.5]} 35. Kg2 {[%clk 0:01:28.5]} 35... Bd6 {[%clk 0:00:52.9]} 36.
f4 {[%clk 0:01:19.6]} 36... Qe7 {[%clk 0:00:48.7]} 37. e4 {[%clk 0:01:17.1]}
37... Qxb7 {[%clk 0:00:02.1]} 38. axb7 {[%clk 0:01:16.8]} 38... f6 {[%clk
0:00:02.4]} 39. Kf3 {[%clk 0:01:03.5]} 39... Bc7 {[%clk 0:00:01.4]} 40. Be6
{[%clk 0:01:01.7]} 40... Kf8 {[%clk 0:00:01.8]} 41. g4 {[%clk 0:00:51.5]} 41...
hxg4+ {[%clk 0:00:01.5]} 42. Kxg4 {[%clk 0:00:47.9]} 42... Kg7 {[%clk
0:00:02.3]} 43. f5 {[%clk 0:00:44.2]} 43... Kh6 {[%clk 0:00:02.9]} 44. fxg6
{[%clk 0:00:42.9]} 44... Kxg6 {[%clk 0:00:03.8]} 45. h5+ {[%clk 0:00:43.4]}
45... Kg7 {[%clk 0:00:03.9]} 46. Kf5 {[%clk 0:00:41.4]} 46... Be5 {[%clk
0:00:04.3]} 47. Bc4 {[%clk 0:00:40.4]} 47... Kh6 {[%clk 0:00:03.7]} 48. Be2
{[%clk 0:00:39.6]} 48... a5 {[%clk 0:00:04.4]} 49. Ke6 {[%clk 0:00:39.5]} 49...
c4 {[%clk 0:00:04.1]} 50. Bxc4 {[%clk 0:00:31.8]} 50... Kxh5 {[%clk 0:00:04.5]}
51. Kd7 {[%clk 0:00:32.4]} 51... Kg5 {[%clk 0:00:05.1]} 52. Kc8 {[%clk 0:00:33]}
52... Kf4 {[%clk 0:00:05.2]} 53. Bd5 {[%clk 0:00:32.5]} 53... Ke3 {[%clk
0:00:05.7]} 54. b8=Q {[%clk 0:00:31.9]} 54... Bxb8 {[%clk 0:00:06.2]} 55. Kxb8
{[%clk 0:00:32.8]} 55... Kd4 {[%clk 0:00:06.9]} 56. Kb7 {[%clk 0:00:27.4]} 56...
f5 {[%clk 0:00:07.2]} 57. exf5 {[%clk 0:00:27.1]} 57... Kxd5 {[%clk 0:00:07.7]}
58. Kb6 {[%clk 0:00:27.2]} 58... Ke5 {[%clk 0:00:07.1]} 59. Kxa5 {[%clk
0:00:26.5]} 59... Kxf5 {[%clk 0:00:07.8]} 60. Kb6 {[%clk 0:00:24.9]} 60... Ke6
{[%clk 0:00:07.9]} 61. Kc6 {[%clk 0:00:24.8]} 61... Ke7 {[%clk 0:00:07.1]} 62.
Kc7 {[%clk 0:00:24.6]} 62... Ke6 {[%clk 0:00:07.5]} 63. b4 {[%clk 0:00:25.2]}
63... Kd5 {[%clk 0:00:08.1]} 64. b5 {[%clk 0:00:25.9]} 64... Kc5 {[%clk
0:00:09]} 65. b6 {[%clk 0:00:26.8]} 1-0

[Event "Late-Titled-Tuesday-Blitz-September-12-2023"]
[Site "Chess.com"]
[Date "2023.09.12"]
[Round "6"]
[White "younix2022"]
[Black "emirgulbeyaz"]
[Result "0-1"]
[WhiteElo "2060"]
[BlackElo "2326"]
[TimeControl "180+1"]
[EndTime "15:04:52 PDT"]
[Termination "emirgulbeyaz won on time"]

1. d4 {[%clk 0:03:00]} 1... g6 {[%clk 0:03:00.9]} 2. Bf4 {[%clk 0:03:00.2]} 2...
Bg7 {[%clk 0:03:01.3]} 3. e3 {[%clk 0:02:59.2]} 3... d6 {[%clk 0:03:01.6]} 4.
Nd2 {[%clk 0:02:58.4]} 4... Nd7 {[%clk 0:03:02.5]} 5. Ngf3 {[%clk 0:02:58.8]}
5... e5 {[%clk 0:03:01.2]} 6. dxe5 {[%clk 0:02:57.9]} 6... dxe5 {[%clk
0:03:01.6]} 7. Bg3 {[%clk 0:02:58.4]} 7... Nh6 {[%clk 0:03:02]} 8. c3 {[%clk
0:02:55.3]} 8... O-O {[%clk 0:03:01.6]} 9. Nc4 {[%clk 0:02:53.9]} 9... f6 {[%clk
0:03:01.2]} 10. Qb3 {[%clk 0:02:52.5]} 10... Kh8 {[%clk 0:02:58.8]} 11. Rd1
{[%clk 0:02:48.6]} 11... Qe7 {[%clk 0:02:58.5]} 12. Be2 {[%clk 0:02:47.9]} 12...
b6 {[%clk 0:02:58.8]} 13. O-O {[%clk 0:02:44.8]} 13... Bb7 {[%clk 0:02:59.4]}
14. Ncd2 {[%clk 0:02:27.9]} 14... Nc5 {[%clk 0:02:59.1]} 15. Qc2 {[%clk
0:02:27.5]} 15... a5 {[%clk 0:02:58.6]} 16. Nb3 {[%clk 0:02:27]} 16... Be4
{[%clk 0:02:54.5]} 17. Qc1 {[%clk 0:02:23.1]} 17... Ne6 {[%clk 0:02:54.4]} 18.
Nbd2 {[%clk 0:02:22]} 18... Bb7 {[%clk 0:02:54.6]} 19. c4 {[%clk 0:02:17.4]}
19... Nf5 {[%clk 0:02:53.7]} 20. b3 {[%clk 0:02:13.5]} 20... a4 {[%clk
0:02:53.4]} 21. Qc3 {[%clk 0:02:08.4]} 21... Nd6 {[%clk 0:02:52.4]} 22. b4
{[%clk 0:02:02.2]} 22... Nf5 {[%clk 0:02:49.4]} 23. a3 {[%clk 0:02:01.8]} 23...
Rfd8 {[%clk 0:02:46]} 24. Nb1 {[%clk 0:02:01.2]} 24... Nd6 {[%clk 0:02:46.2]}
25. c5 {[%clk 0:01:59.6]} 25... Ne4 {[%clk 0:02:46.8]} 26. Qc2 {[%clk
0:01:55.4]} 26... bxc5 {[%clk 0:02:47]} 27. bxc5 {[%clk 0:01:51.7]} 27... Qxc5
{[%clk 0:02:46]} 28. Qb2 {[%clk 0:01:45.9]} 28... Qb6 {[%clk 0:02:45.8]} 29. Qa2
{[%clk 0:01:43.9]} 29... N6c5 {[%clk 0:02:43.7]} 30. Bc4 {[%clk 0:01:40.1]}
30... Nd6 {[%clk 0:02:41.4]} 31. Bd5 {[%clk 0:01:34.8]} 31... Bxd5 {[%clk
0:02:37.5]} 32. Qxd5 {[%clk 0:01:34.8]} 32... Nb3 {[%clk 0:02:34.7]} 33. Nxe5
{[%clk 0:01:28.1]} 33... fxe5 {[%clk 0:02:34.3]} 34. Bxe5 {[%clk 0:01:28.2]}
34... Qc5 {[%clk 0:02:33.4]} 35. Bxg7+ {[%clk 0:01:28.2]} 35... Kxg7 {[%clk
0:02:34.3]} 36. Qe6 {[%clk 0:01:22.5]} 36... Qf5 {[%clk 0:02:32]} 37. Qe7+
{[%clk 0:01:15.4]} 37... Qf7 {[%clk 0:02:32.1]} 38. Qe5+ {[%clk 0:01:15.4]}
38... Qf6 {[%clk 0:02:32.7]} 39. Qd5 {[%clk 0:01:12.7]} 39... Ra5 {[%clk
0:02:31.5]} 40. Qc6 {[%clk 0:01:12.2]} 40... Qf7 {[%clk 0:02:11.6]} 41. h4
{[%clk 0:00:53.1]} 41... Kg8 {[%clk 0:02:11.3]} 42. h5 {[%clk 0:00:53]} 42...
Raa8 {[%clk 0:02:03.5]} 43. h6 {[%clk 0:00:51.1]} 43... Qc4 {[%clk 0:02:01]} 44.
Qf3 {[%clk 0:00:44.2]} 44... Qf7 {[%clk 0:01:56.1]} 45. Qc6 {[%clk 0:00:42.3]}
45... Qd7 {[%clk 0:01:50.2]} 46. Qc3 {[%clk 0:00:40.5]} 46... Qe7 {[%clk
0:01:45.8]} 47. Qc6 {[%clk 0:00:37.6]} 47... Nf7 {[%clk 0:01:41.1]} 48. Nc3
{[%clk 0:00:36]} 48... Nxh6 {[%clk 0:01:19.1]} 49. Ne4 {[%clk 0:00:36.4]} 49...
Nf5 {[%clk 0:01:10.4]} 50. Nf6+ {[%clk 0:00:36.1]} 50... Kf7 {[%clk 0:01:10.9]}
51. Nxh7 {[%clk 0:00:32.5]} 51... Kg7 {[%clk 0:01:11.3]} 52. g4 {[%clk
0:00:25.7]} 52... Nd6 {[%clk 0:00:46.7]} 53. Qh1 {[%clk 0:00:23.5]} 53... Rh8
{[%clk 0:00:45.9]} 54. Qd5 {[%clk 0:00:07.1]} 54... Kxh7 {[%clk 0:00:41.6]} 55.
f3 {[%clk 0:00:05]} 55... Kg7 {[%clk 0:00:40.6]} 56. Kf2 {[%clk 0:00:04.5]}
56... Ra5 {[%clk 0:00:38.1]} 0-1

[Event "Late-Titled-Tuesday-Blitz-September-12-2023"]
[Site "Chess.com"]
[Date "2023.09.12"]
[Round "6"]
[White "SpeedofLight0"]
[Black "jk13"]
[Result "1-0"]
[WhiteElo "3089"]
[BlackElo "2674"]
[TimeControl "180+1"]
[EndTime "15:05:00 PDT"]
[Termination "SpeedofLight0 won by resignation"]

1. Nf3 {[%clk 0:03:00.9]} 1... d5 {[%clk 0:02:59.9]} 2. e3 {[%clk 0:02:59.9]}
2... e6 {[%clk 0:02:58.1]} 3. b3 {[%clk 0:02:59.4]} 3... Nf6 {[%clk 0:02:58.3]}
4. Bb2 {[%clk 0:02:59.1]} 4... Be7 {[%clk 0:02:58.8]} 5. c4 {[%clk 0:02:58]}
5... O-O {[%clk 0:02:59.1]} 6. d4 {[%clk 0:02:56.6]} 6... b6 {[%clk 0:02:57.2]}
7. Bd3 {[%clk 0:02:56.4]} 7... Bb7 {[%clk 0:02:57.3]} 8. O-O {[%clk 0:02:56.8]}
8... dxc4 {[%clk 0:02:54.8]} 9. bxc4 {[%clk 0:02:56.3]} 9... c5 {[%clk
0:02:55.6]} 10. Nbd2 {[%clk 0:02:55.2]} 10... cxd4 {[%clk 0:02:55.1]} 11. exd4
{[%clk 0:02:56.1]} 11... Nc6 {[%clk 0:02:55.2]} 12. Rc1 {[%clk 0:02:55.8]} 12...
Rc8 {[%clk 0:02:55.3]} 13. Re1 {[%clk 0:02:56]} 13... Qd6 {[%clk 0:02:49.1]} 14.
Bb1 {[%clk 0:02:53]} 14... Rfd8 {[%clk 0:02:48.8]} 15. Qe2 {[%clk 0:02:49.6]}
15... Qf4 {[%clk 0:02:43.6]} 16. Nf1 {[%clk 0:02:36.4]} 16... Bf8 {[%clk
0:02:32.7]} 17. Ng3 {[%clk 0:02:29.5]} 17... Rd7 {[%clk 0:02:10.2]} 18. Rcd1
{[%clk 0:02:22.3]} 18... Rcd8 {[%clk 0:02:08.5]} 19. Bc1 {[%clk 0:01:59.3]}
19... Qc7 {[%clk 0:02:08.6]} 20. Bb2 {[%clk 0:01:50.3]} 20... Qf4 {[%clk
0:02:01.3]} 21. a3 {[%clk 0:01:45.7]} 21... h6 {[%clk 0:01:57.8]} 22. Qc2 {[%clk
0:01:40.5]} 22... g6 {[%clk 0:01:51]} 23. Bc1 {[%clk 0:01:03]} 23... Qc7 {[%clk
0:01:50.7]} 24. Bb2 {[%clk 0:00:50]} 24... Qf4 {[%clk 0:01:49.9]} 25. h3 {[%clk
0:00:43.5]} 25... Bg7 {[%clk 0:01:44.7]} 26. Qa4 {[%clk 0:00:35.5]} 26... Qc7
{[%clk 0:01:26.6]} 27. Rc1 {[%clk 0:00:25.1]} 27... Nh7 {[%clk 0:01:17.7]} 28.
h4 {[%clk 0:00:21.7]} 28... Nxd4 {[%clk 0:01:12.2]} 29. Bxd4 {[%clk 0:00:21.7]}
29... Bxd4 {[%clk 0:01:03.7]} 30. Nxd4 {[%clk 0:00:20.5]} 30... Rxd4 {[%clk
0:01:04.6]} 31. h5 {[%clk 0:00:20.5]} 31... g5 {[%clk 0:00:59.7]} 32. Qc2 {[%clk
0:00:16.6]} 32... Nf8 {[%clk 0:00:59.7]} 33. Qc3 {[%clk 0:00:13.7]} 33... Qc5
{[%clk 0:00:51.7]} 34. Qe3 {[%clk 0:00:09.5]} 34... Rxc4 {[%clk 0:00:44.5]} 35.
Rxc4 {[%clk 0:00:10.1]} 35... Qxc4 {[%clk 0:00:45]} 36. Rc1 {[%clk 0:00:10.4]}
36... Qd4 {[%clk 0:00:43.5]} 37. Qe2 {[%clk 0:00:09.2]} 37... Qd2 {[%clk
0:00:43]} 38. Qf1 {[%clk 0:00:08.5]} 38... Ba6 {[%clk 0:00:40.7]} 39. Qe1 {[%clk
0:00:04.4]} 39... Qxe1+ {[%clk 0:00:40.9]} 40. Rxe1 {[%clk 0:00:05.3]} 40... Rd2
{[%clk 0:00:39.5]} 41. Ne4 {[%clk 0:00:05]} 41... Rb2 {[%clk 0:00:39.4]} 42. Rd1
{[%clk 0:00:05]} 42... Kg7 {[%clk 0:00:37.8]} 43. Nd6 {[%clk 0:00:04.4]} 43...
Be2 {[%clk 0:00:36.2]} 44. Ne8+ {[%clk 0:00:03.8]} 44... Kg8 {[%clk 0:00:35.1]}
45. Rc1 {[%clk 0:00:04.2]} 45... Bc4 {[%clk 0:00:30.7]} 46. Be4 {[%clk
0:00:02.9]} 46... Bb5 {[%clk 0:00:26.5]} 47. Rc8 {[%clk 0:00:01.3]} 47... Bxe8
{[%clk 0:00:25.8]} 48. Rxe8 {[%clk 0:00:02.2]} 48... Kg7 {[%clk 0:00:26.2]} 49.
Re7 {[%clk 0:00:02.8]} 49... Kf6 {[%clk 0:00:24.8]} 50. Rxa7 {[%clk 0:00:02.6]}
50... Rb3 {[%clk 0:00:21.7]} 51. Bc6 {[%clk 0:00:02.7]} 51... g4 {[%clk
0:00:12.5]} 52. Be8 {[%clk 0:00:02.8]} 52... Kg7 {[%clk 0:00:11.1]} 53. Rxf7+
{[%clk 0:00:03.1]} 53... Kg8 {[%clk 0:00:11.8]} 54. Ra7 {[%clk 0:00:03.6]} 54...
g3 {[%clk 0:00:11.6]} 55. fxg3 {[%clk 0:00:03.7]} 55... Rxg3 {[%clk 0:00:11.6]}
56. Bf7+ {[%clk 0:00:04.4]} 56... Kh8 {[%clk 0:00:11.1]} 57. a4 {[%clk
0:00:05.1]} 57... Rg5 {[%clk 0:00:10.6]} 58. Be8 {[%clk 0:00:05.2]} 58... Rc5
{[%clk 0:00:09.8]} 59. Rb7 {[%clk 0:00:05.5]} 59... Rc1+ {[%clk 0:00:08.6]} 60.
Kh2 {[%clk 0:00:06.1]} 60... Rc8 {[%clk 0:00:08.7]} 61. Bb5 {[%clk 0:00:05.9]}
61... Rc5 {[%clk 0:00:08.4]} 62. Rxb6 {[%clk 0:00:06.3]} 62... Rxh5+ {[%clk
0:00:09]} 63. Kg1 {[%clk 0:00:06.3]} 63... Rh4 {[%clk 0:00:09.3]} 64. a5 {[%clk
0:00:06.6]} 64... Rb4 {[%clk 0:00:09.9]} 65. a6 {[%clk 0:00:07.2]} 65... Rb1+
{[%clk 0:00:10.3]} 66. Kh2 {[%clk 0:00:07.9]} 66... Ra1 {[%clk 0:00:11]} 67. Rb7
{[%clk 0:00:07.8]} 67... Ng6 {[%clk 0:00:10.9]} 68. a7 {[%clk 0:00:08.1]} 68...
Ne5 {[%clk 0:00:10.1]} 69. Rb8+ {[%clk 0:00:08.5]} 69... Kg7 {[%clk 0:00:10.7]}
70. a8=Q {[%clk 0:00:09.2]} 70... Rxa8 {[%clk 0:00:10.8]} 71. Rxa8 {[%clk
0:00:10.1]} 1-0